[Event "Tsaghkadzor Open 2024"]
[Site "Tsaghkadzor"]
[Date "2024.10.02"]
[Round "1.1"]
[White "Ghimoyan, Narek"]
[Black "Lysyj, Igor"]
[Result "1/2-1/2"]
[ECO "D39"]
[WhiteElo "2177"]
[BlackElo "2589"]
[Annotator "TA"]
[PlyCount "67"]
[EventDate "2024.09.13"]
[EventType "swiss"]
[EventCountry "ARM"]
[SourceTitle "playchess.com"]
[Source "ChessBase"]
[SourceQuality "1"]
[TimeControl "40/5400+30:1800+30"]

{[%evp 15,67,9,25,8,29,18,22,21,30,24,33,25,30,22,28,15,25,14,20,16,70,16,20,17,14,0,0,0,19,20,14,15,10,15,16,16,16,8,9,0,12,9,22,7,17,1,37,37,37,39,39,39,39,39]} 1. d4 {[%emt 1:31:00]} Nf6 {[%emt 1:31:00]} 2. c4 {[%emt 0:00:30]} e6 {[%emt 0:00:30]} 3. Nf3 {[%emt 0:00:30]} d5 {[%emt 0:00:30]} 4. Nc3 {[%emt 0:00:30]} Bb4 {[%emt 0:00:30]} 5. Bg5 {[%emt 0:00:30]} dxc4 {[%emt 0:00:30]} 6. e4 {[%emt 0:00:30]} h6 {[%emt 0:00:30]} 7. Bxf6 {[%emt 0:00:30]} Qxf6 {[%emt 0:00:30]} 8. Bxc4 {[%emt 0:00:30]} c5 {[%emt 0:00:30]} 9. O-O {[%emt 0:00:30] Hoping for Nb5.} cxd4 {[%emt 0:00:30]} 10. e5 {[%emt 0:00:30]} Qe7 {[%emt 0:00:30]} 11. Qxd4 {[%emt 0:00:30] The position is equal.} Bd7 {[%emt 0:00:30]} 12. Ne4 {[%emt 0:00:30] Black must now prevent a3.} O-O {[%emt 0:00:30] [#]} 13. Nf6+ $1 {[%emt 0:00:30]} Kh8 $1 {[%emt 0:00:30]} (13... gxf6 $2 {perishes.} 14. exf6 Rc8 15. Qg4+ (15. fxe7 Bxe7 16. Qg4+ Kf8 $18) 15... Kf8 16. Qg7+ (16. fxe7+ Bxe7 17. Qf4 Kg7 $18) 16... Ke8 17. fxe7 $18) 14. Nxd7 {[%emt 0:00:30]} Nxd7 {[%emt 0:00:30] Black is weak on the light squares} 15. a3 {[%emt 0:00:30]} Ba5 {[%emt 0:00:30]} 16. b4 {[%emt 0:00:30]} Bb6 {[%emt 0:00:30]} 17. Qe4 {[%emt 0:00:30]} Rab8 {[%emt 0:00:30]} (17... Rfb8 $11) 18. Rfd1 {[%emt 0:00:30] White is more active.} (18. Bd3 $1 $14 g6 19. h4) 18... Rfd8 $11 {[%emt 0:00:30]} 19. g3 {[%emt 0:00:30]} a5 {[%emt 0:00:30]} 20. Bb5 {[%emt 0:00:30]} axb4 {[%emt 0:00:30]} 21. axb4 {[%emt 0:00:30]} Nf8 {[%emt 0:00:30]} 22. Kg2 {[%emt 0:00:30]} Kg8 {[%emt 0:00:30]} 23. h4 {[%emt 0:00:30]} Rxd1 {[%emt 0:00:30]} 24. Rxd1 {[%emt 0:00:30]} Rd8 {[%emt 0:00:30]} 25. Rxd8 {[%emt 0:00:30]} Bxd8 {[%emt 0:00:30][%cal Bb6d8,Bd8f6,Bf6c3][%mdl 32]} 26. Qd4 {[%emt 0:00:30]} Qc7 {[%emt 0:00:30]} 27. Nd2 {[%emt 0:00:30]} f6 {[%emt 0:00:30]} 28. exf6 {[%emt 0:00:30]} Bxf6 {[%emt 0:00:30]} 29. Qe4 {[%emt 0:00:30]} Qd6 {[%emt 0:00:30]} 30. Nf3 {[%emt 0:00:30][%cal Ob5c4]} Bc3 {[%emt 0:00:30]} 31. Qxb7 {[%emt 0:00:30] White is slightly better.} Qxb4 {[%emt 0:00:30]} 32. Qc6 {[%emt 0:00:30]} Bf6 {[%emt 0:00:30]} 33. Bc4 {[%emt 0:00:30]} Kf7 {[%emt 0:00:30]} 34. Qc7+ {[%emt 0:00:30] Weighted Error Value: White=0.09 (flawless) /Black=0.08 (flawless) .  Mistake:       	White=1     	Black=1      Inaccurate:     	---       	Black=1      OK:         	White=5     	Black=11     Strong:       	---       	Black=1} 1/2-1/2

[Event "Tsaghkadzor Open 2024"]
[Site "Tsaghkadzor"]
[Date "2024.10.02"]
[Round "1.2"]
[White "Karthik Venkataraman"]
[Black "Alikhanyan, Artak"]
[Result "1-0"]
[ECO "A11"]
[WhiteElo "2581"]
[BlackElo "2172"]
[Annotator "TA"]
[PlyCount "97"]
[EventDate "2024.09.13"]
[EventType "swiss"]
[EventCountry "ARM"]
[SourceTitle "playchess.com"]
[Source "ChessBase"]
[SourceQuality "1"]
[TimeControl "40/5400+30:1800+30"]

{[%evp 9,97,10,2,18,6,22,14,1,19,20,25,0,39,-2,13,0,0,0,155,53,41,43,52,47,49,47,46,37,48,45,67,66,154,158,164,155,150,154,232,220,227,228,216,185,182,71,193,167,182,156,256,239,262,250,222,118,268,256,272,254,260,268,268,260,279,275,281,275,273,272,268,274,284,258,284,276,286,286,358,366,348,358,322,352,474,458,448,420,478,468]} 1. c4 {[%emt 1:31:00]} c6 {[%emt 1:31:00]} 2. g3 {[%emt 0:00:30]} Nf6 {[%emt 0:00:30]} 3. Bg2 {[%emt 0:00:30]} d5 {[%emt 0:00:30]} 4. Nf3 {[%emt 0:00:30]} Bf5 {[%emt 0:00:30][%cal Bc8f5,Bf5g4,Bg4h5][%mdl 32]} 5. O-O {[%emt 0:00:30]} e6 {[%emt 0:00:30]} 6. Nc3 {[%emt 0:00:30]} dxc4 {[%emt 0:00:30]} 7. Nh4 {[%emt 0:00:30]} Bg4 {[%emt 0:00:30]} 8. b3 {[%emt 0:00:30] The position is equal.} cxb3 {[%emt 0:00:30]} 9. Qxb3 {[%emt 0:00:30]} Qb6 {[%emt 0:00:30]} 10. Qc2 {[%emt 0:00:30][%mdl 1024] White has compensation.} Nbd7 {[%emt 0:00:30]} 11. h3 {[%emt 0:00:30][%cal Oa1b1]} Bh5 {[%emt 0:00:30]} 12. Rb1 {[%emt 0:00:30]} Qa6 {[%emt 0:00:30]} 13. d4 {[%emt 0:00:30]} Nd5 $2 {[%emt 0:00:30]} (13... Rd8 $11) 14. Nxd5 {[%emt 0:00:30]} ({White has to play} 14. Bxd5 $1 $16 exd5 (14... cxd5 $2 15. Nb5 $18) 15. e4) 14... cxd5 $14 {[%emt 0:00:30]} 15. g4 $36 {[%emt 0:00:30][%mdl 2048] White has good play.} Be7 {[%emt 0:00:30]} 16. gxh5 {[%emt 0:00:30]} Bxh4 {[%emt 0:00:30]} 17. e4 $1 {[%emt 0:00:30]} O-O {[%emt 0:00:30]} 18. exd5 {[%emt 0:00:30]} exd5 {[%emt 0:00:30]} 19. Bxd5 {[%emt 0:00:30]} Rad8 {[%emt 0:00:30]} 20. Bxb7 {[%emt 0:00:30] White is more active. This pair of bishops is nice.} (20. Rxb7 {with more complications.} Nb6 21. Bg2 Bf6 22. h6) 20... Qa5 {[%emt 0:00:30]} (20... Qf6 $14) 21. d5 $1 $16 {[%emt 0:00:30]} Bf6 {[%emt 0:00:30][%cal Bh4f6,Bf6e5,Be5d6,Bd6c5][%mdl 32]} 22. Bd2 {[%emt 0:00:30]} Qa3 {[%emt 0:00:30]} 23. Rb3 {[%emt 0:00:30]} Qd6 {[%emt 0:00:30] Black is weak on the light squares} (23... Qc5 $16 24. Qf5 Rfe8) 24. Bb4 $18 {[%emt 0:00:30]} Qf4 {[%emt 0:00:30][%cal Of6e5]} 25. Bxf8 {[%emt 0:00:30]} Be5 {[%emt 0:00:30] [#]} 26. Rg3 $1 {[%emt 0:00:30]} Rxf8 {[%emt 0:00:30]} (26... Nxf8 27. Qe2) 27. Qe2 {[%emt 0:00:30]} (27. d6 $18 {is more deadly.}) 27... Nc5 {[%emt 0:00:30]} (27... Qb4 $16 28. Bc6 (28. Rb3 Qf4 $14) 28... Bxg3 29. fxg3 (29. Bxd7 Bc7 $11) 29... Qd6) 28. Re1 {[%emt 0:00:30]} Bd6 {[%emt 0:00:30]} 29. Bc6 {[%emt 0:00:30][%cal Bb7c6,Bc6d7,Bd7e6][%mdl 32]} f5 {[%emt 0:00:30]} (29... Qh4 $16 {was necessary.}) 30. Qe3 {[%emt 0:00:30]} Qh4 {[%emt 0:00:30][%cal Oc5e4] [#]} 31. h6 $1 {[%emt 0:00:30]} g6 {[%emt 0:00:30] [#]} 32. Rf3 {[%emt 0:00:30]} ({Better is} 32. Bd7 $1 $18 {[%cal Rd7e6] Hoping for Be6+.} Qf6 33. Be6+ Nxe6 34. dxe6 (34. Qxe6+ Qxe6 35. Rxe6 Bxg3 $16)) 32... Ne4 {[%emt 0:00:30] [#]} (32... Rf7 $16 33. Kg2 Re7) 33. Bd7 $1 {[%emt 0:00:30]} ({Weaker is} 33. Qxa7 Qxh6 34. Qe3 Ng5 $16) 33... Bc5 {[%emt 0:00:30]} 34. Be6+ {[%emt 0:00:30]} Kh8 {[%emt 0:00:30]} 35. Qf4 {[%emt 0:00:30]} Qxf4 {[%emt 0:00:30]} 36. Rxf4 {[%emt 0:00:30]} Rb8 {[%emt 0:00:30]} 37. Rc1 {[%emt 0:00:30][%cal Of4e4] Black must now prevent Rxe4!} Bf8 {[%emt 0:00:30]} 38. Rf3 {[%emt 0:00:30] aiming for Rb3.} Bxh6 {[%emt 0:00:30]} 39. Rb3 {[%emt 0:00:30]} Rxb3 {[%emt 0:00:30]} 40. Rc8+ {[%emt 0:00:30]} Kg7 {[%emt 0:00:30]} 41. axb3 {[%emt 0:30:30][%mdl 4096] Endgame. KRB-KBN} a5 {[%emt 0:30:30]} 42. f3 {[%emt 0:00:30]} Nc5 {[%emt 0:00:30]} 43. Kf2 {[%emt 0:00:30]} ({Stronger than} 43. Rxc5 Be3+ 44. Kf1 Bxc5 $11) 43... Nd3+ {[%emt 0:00:30]} 44. Kf1 {[%emt 0:00:30]} Kf6 {[%emt 0:00:30]} 45. Bg8 {[%emt 0:00:30]} Bf4 {[%emt 0:00:30]} 46. Bxh7 {[%emt 0:00:30]} Nc1 {[%emt 0:00:30] [#]} 47. d6 $1 {[%emt 0:00:30] White threatens d7 and mate.} Ke6 {[%emt 0:00:30]} 48. Bxg6 {[%emt 0:00:30]} Kxd6 {[%emt 0:00:30]} 49. Bf7 {[%emt 0:00:30] Weighted Error Value: White=0.13 (very precise) /Black=0.29 (precise) .  Mistake:       	White=3     	Black=6      Inaccurate:     	White=1     	Black=1      OK:         	White=23    	Black=18     Best:        	White=2     	Black=5      Strong:       	White=2     	---} ({Resist} 49. Bxf5 Nxb3 50. Be4 Ke7 $18) 1-0

[Event "Tsaghkadzor Open 2024"]
[Site "Tsaghkadzor"]
[Date "2024.10.02"]
[Round "1.3"]
[White "Nalbandyan, Vahan"]
[Black "Gabuzyan, Hovhannes"]
[Result "1/2-1/2"]
[ECO "B37"]
[WhiteElo "2160"]
[BlackElo "2579"]
[Annotator "RC"]
[PlyCount "99"]
[EventDate "2024.09.13"]
[EventType "swiss"]
[EventCountry "ARM"]
[SourceTitle "playchess.com"]
[Source "ChessBase"]
[SourceQuality "1"]
[TimeControl "40/5400+30:1800+30"]

1. e4 {[%emt 0:08:36]} c5 {[%emt 0:00:26]} 2. Nf3 {[%emt 0:00:29]} Nc6 {[%emt 0:00:06]} 3. d4 {[%emt 0:02:32]} cxd4 {[%emt 0:00:07]} 4. Nxd4 {[%emt 0:00:12]} g6 {[%emt 0:00:02]} 5. c4 {[%emt 0:07:04]} Nf6 {[%emt 0:00:16]} 6. Nc3 {[%emt 0:00:48]} d6 {[%emt 0:00:04]} 7. Nc2 {[%emt 0:01:05]} Bg7 {[%emt 0:00:22]} 8. Be2 {[%emt 0:01:05]} Nd7 {[%emt 0:00:10]} 9. Bd2 {[%emt 0:07:29]} Nc5 {[%emt 0:00:22]} 10. b4 {[%emt 0:02:02]} Ne6 {[%emt 0:03:21]} 11. O-O {[%emt 0:05:31]} O-O {[%emt 0:00:06]} 12. Rb1 {[%emt 0:16:43]} Ned4 {[%emt 0:01:42]} 13. Nxd4 {[%emt 0:02:00]} Nxd4 {[%emt 0:00:03]} 14. Bd3 {[%emt 0:07:59]} a5 {[%emt 0:04:28]} 15. bxa5 {[%emt 0:02:24]} Rxa5 {[%emt 0:01:13]} 16. a4 {[%emt 0:00:27]} Ne6 {[%emt 0:04:16]} 17. Nd5 {[%emt 0:01:03]} Ra8 {[%emt 0:00:10]} 18. Bc2 {[%emt 0:06:17]} Re8 {[%emt 0:05:21]} 19. Be3 {[%emt 0:04:45]} Nc5 {[%emt 0:03:45]} 20. Nb6 {[%emt 0:00:15]} Ra7 {[%emt 0:01:09]} 21. f4 {[%emt 0:00:50]} Qc7 {[%emt 0:06:10]} 22. Nd5 {[%emt 0:02:40]} Qd8 {[%emt 0:02:08]} 23. e5 {[%emt 0:05:00]} Bd7 {[%emt 0:06:28]} 24. Nb6 {[%emt 0:08:48]} Bc6 {[%emt 0:01:43]} 25. Qe2 {[%emt 0:01:37]} Ra6 {[%emt 0:12:25]} 26. Bxc5 {[%emt 0:00:24]} dxc5 {[%emt 0:00:01]} 27. Rfd1 {[%emt 0:00:08]} Rxb6 {[%emt 0:06:21]} 28. Rxd8 {[%emt 0:00:05]} Rxb1+ {[%emt 0:00:04]} 29. Rd1 {[%emt 0:00:39]} Rb2 {[%emt 0:00:26]} 30. Qd3 {[%emt 0:00:22]} e6 {[%emt 0:02:57]} 31. Qc3 {[%emt 0:03:48]} Ra2 {[%emt 0:01:09]} 32. a5 {[%emt 0:00:39]} Ra8 {[%emt 0:05:44]} 33. Ra1 {[%emt 0:00:32]} Rxa1+ {[%emt 0:00:04]} 34. Qxa1 {[%emt 0:00:04]} Rd8 {[%emt 0:00:02]} 35. a6 {[%emt 0:00:54]} bxa6 {[%emt 0:00:49]} 36. Qxa6 {[%emt 0:01:36]} Bxg2 {[%emt 0:00:29]} 37. Qa5 {[%emt 0:00:20]} Ra8 {[%emt 0:00:06]} 38. Qxc5 {[%emt 0:00:04]} Bf8 {[%emt 0:00:16]} 39. Qb5 {[%emt 0:01:38]} Bh3 {[%emt 0:01:03]} 40. Be4 {[%emt 0:00:00]} Ra3 {[%emt 0:00:00]} 41. Kf2 {[%emt 0:17:20]} Rc3 {[%emt 0:18:15]} 42. Ke2 {[%emt 0:04:23]} Bh6 {[%emt 0:01:19]} 43. Kd2 {[%emt 0:05:55]} Ra3 {[%emt 0:00:11]} 44. Qe8+ {[%emt 0:00:26]} Kg7 {[%emt 0:00:12]} 45. Qe7 {[%emt 0:00:24]} Bxf4+ {[%emt 0:01:57]} 46. Kc2 {[%emt 0:00:52]} Re3 {[%emt 0:01:06]} 47. Qf6+ {[%emt 0:00:45]} Kg8 {[%emt 0:00:21]} 48. Qd8+ {[%emt 0:00:45]} Kg7 {[%emt 0:00:02]} 49. Qf6+ {[%emt 0:00:05]} Kg8 {[%emt 0:00:03]} 50. Qd8+ {[%emt 0:03:21]} 1/2-1/2

[Event "Tsaghkadzor Open 2024"]
[Site "Tsaghkadzor"]
[Date "2024.10.02"]
[Round "1.4"]
[White "Andriasian, Zaven"]
[Black "Ambartsumian, Tyhran"]
[Result "1-0"]
[ECO "C54"]
[WhiteElo "2558"]
[BlackElo "2156"]
[Annotator "TA"]
[PlyCount "45"]
[EventDate "2024.09.13"]
[EventType "swiss"]
[EventCountry "ARM"]
[SourceTitle "playchess.com"]
[Source "ChessBase"]
[SourceQuality "1"]
[TimeControl "40/5400+30:1800+30"]

{[%evp 10,45,12,8,8,5,11,5,25,33,26,20,32,19,40,35,56,14,18,8,6,7,315,297,312,246,987,958,29989,29990,29990,29991,29992,29992,29992,29993,29993,1387]} 1. e4 {[%emt 0:00:10]} e5 {[%emt 0:00:30]} 2. Nf3 {[%emt 0:00:12]} Nc6 {[%emt 0:00:06]} 3. Bc4 {[%emt 0:00:15]} Bc5 {[%emt 0:00:10]} 4. d3 {[%emt 0:00:31]} Nf6 {[%emt 0:00:09]} 5. Nbd2 {[%emt 0:00:35][%cal Bb1d2,Bd2f1,Bf1g3][%mdl 32]} d6 {[%emt 0:01:09]} 6. c3 {[%emt 0:00:07]} a5 {[%emt 0:00:10]} 7. h3 {[%emt 0:01:01]} h6 {[%emt 0:00:11]} 8. Nf1 {[%emt 0:01:40]} d5 {[%emt 0:13:09] The position is equal.} 9. exd5 {[%emt 0:01:10]} Nxd5 {[%emt 0:00:09]} 10. Ng3 {[%emt 0:00:47]} O-O $1 {[%emt 0:04:28]} 11. O-O {[%emt 0:00:36]} Nf6 {[%emt 0:13:41]} 12. Re1 {[%emt 0:03:00][%cal Oc4b5]} Qd6 {[%emt 0:02:27]} 13. Nh4 {[%emt 0:06:37] Black must now prevent Nhf5.} b5 $1 {[%emt 0:03:14]} 14. Bb3 {[%emt 0:05:31] [#] Nhf5 would now be deadly.} a4 $1 {[%emt 0:18:13]} 15. Bc2 {[%emt 0:00:11]} Bb7 $2 {[%emt 0:00:58][%mdl 8192] This costs Black the game.} (15... Ne7 $11 {and Black stays safe.}) 16. Ngf5 $18 {[%emt 0:05:54]} Qd5 {[%emt 0:01:59]} 17. Qd2 {[%emt 0:07:01][%cal Of5g7] Strongly threatening Nxg7!} g6 {[%emt 0:37:44]} (17... Ne7 18. Nxg7 Ng6) 18. Qxh6 {[%emt 0:03:13][%csl Gf5][%cal Rh6g7] [#]} gxf5 {[%emt 0:00:13]} 19. Qg5+ {[%emt 0:00:49] White mates.} Kh7 {[%emt 0:00:05]} 20. Qxf5+ {[%emt 0:00:35]} Kg7 {[%emt 0:00:09]} 21. Qg5+ {[%emt 0:00:43]} Kh7 {[%emt 0:00:13]} 22. d4+ {[%emt 0:00:47]} e4 {[%emt 0:00:07]} 23. Qxf6 {[%emt 0:01:24] Weighted Error Value: White=0.08 (flawless) /Black=0.54.  Loses game:     	---       	Black=1      Mistake:       	---       	Black=1      Inaccurate:     	White=1     	Black=1      OK:         	White=5     	Black=1      Best:        	White=1     	---        Strong:       	---       	Black=3} (23. Nf5 $142 Qxf5 24. Qxf5+ Kg7 25. Bh6+ (25. dxc5 Ne7 $18) (25. Qg5+ Kh7 26. Bxe4+ Kh8 27. Qxf6+ Kg8 28. Qg5+ Kh8 29. Qh6+ Kg8 30. Qh7#) 25... Kxh6 26. Qxf6+ (26. Qxc5 Rg8 $18) 26... Kh7 27. Rxe4 (27. dxc5 Ne5 $18) (27. Bxe4+ Kg8 28. Qg5+ Kh8 29. Qh6+ Kg8 30. Qh7#) 27... Rae8 28. Rg4+ Re4 29. Bxe4#) 1-0

[Event "Tsaghkadzor Open 2024"]
[Site "Tsaghkadzor"]
[Date "2024.10.02"]
[Round "1.5"]
[White "Manukyan, Artyom"]
[Black "Nozdrachev, Vladislav"]
[Result "1/2-1/2"]
[ECO "C54"]
[WhiteElo "2155"]
[BlackElo "2515"]
[Annotator "TA"]
[PlyCount "72"]
[EventDate "2024.09.13"]
[EventType "swiss"]
[EventCountry "ARM"]
[SourceTitle "playchess.com"]
[Source "ChessBase"]
[SourceQuality "1"]
[TimeControl "40/5400+30:1800+30"]

{[%evp 17,72,0,7,9,7,0,0,0,15,11,69,56,100,0,0,0,12,0,22,15,12,12,22,-6,-8,0,0,0,0,-25,-33,-77,0,0,0,0,0,0,0,0,0,0,0,0,0,0,0,0,0,0,0,0,0,0,0,0,0]} 1. e4 {[%emt 0:00:02]} e5 {[%emt 0:00:05]} 2. Nf3 {[%emt 0:00:05]} Nc6 {[%emt 0:00:06]} 3. Bc4 {[%emt 0:00:08]} Bc5 {[%emt 0:00:17]} 4. c3 {[%emt 0:00:13]} Nf6 {[%emt 0:00:05]} 5. d4 {[%emt 0:00:04]} exd4 {[%emt 0:00:05]} 6. e5 {[%emt 0:00:06]} d5 {[%emt 0:00:25]} 7. Bb5 {[%emt 0:00:06]} Ne4 {[%emt 0:00:11]} 8. cxd4 {[%emt 0:00:06]} Bb6 {[%emt 0:00:05]} 9. Nc3 {[%emt 0:01:02]} O-O {[%emt 0:02:47]} 10. Be3 {[%emt 0:00:32]} Bg4 {[%emt 0:08:17]} 11. h3 {[%emt 0:02:37]} Bh5 {[%emt 0:08:35]} 12. Qc2 {[%emt 0:01:27]} Bg6 {[%emt 0:00:08] [#] Strongly threatening ...Nxc3.} 13. Qb3 {[%emt 0:00:07]} Nxc3 {[%emt 0:05:48]} (13... Ne7 $11) 14. Bxc6 $1 $14 {[%emt 0:06:16]} Ba5 {[%emt 0:04:37] ...Ne4+ is the strong threat.} 15. Bd2 {[%emt 0:15:04]} (15. Bxb7 Ne4+ 16. Kf1 Rb8 17. Qxd5 Qxd5 18. Bxd5 Rxb2 $14) (15. Qxb7 $16 {And now Qa6 would win.} Nxa2+ 16. Nd2 Bxd2+ 17. Bxd2) 15... bxc6 $11 {[%emt 0:01:23]} 16. Bxc3 {[%emt 0:03:31]} Rb8 {[%emt 0:04:16]} 17. Qa3 {[%emt 0:02:58]} Bxc3+ {[%emt 0:00:55]} 18. Qxc3 {[%emt 0:02:17][%cal Oe1g1]} Be4 {[%emt 0:06:31]} 19. O-O {[%emt 0:07:46]} c5 {[%emt 0:00:47]} 20. Nd2 {[%emt 0:10:41]} (20. Qxc5 Bxf3 (20... Rxb2 21. Qa3 $11) 21. gxf3 Qg5+ (21... Rxb2 22. f4 $11) 22. Kh2 Qf4+ 23. Kg2 Rb6 $15 (23... Rxb2 24. Qxd5 Qg5+ 25. Kh1 $11)) 20... cxd4 {[%emt 0:02:41]} 21. Qxd4 {[%emt 0:00:13][%cal Oa1c1]} c5 $1 {[%emt 0:00:15]} 22. Qe3 {[%emt 0:02:29]} (22. Qxc5 Bxg2 (22... Rxb2 23. Nxe4 dxe4 24. Qxa7 $14) 23. Kxg2 Qg5+ (23... Rxb2 $2 {is the wrong capture.} 24. Nf3 $18) 24. Kh1 Qxd2) 22... Bf5 {[%emt 0:04:44]} 23. Nb3 {[%emt 0:44:10]} d4 {[%emt 0:02:33]} 24. Qf3 {[%emt 0:00:00] [#]} Be6 {[%emt 0:05:21]} ({Better is} 24... Bc2 $1 $17 25. Rac1 d3) 25. Nxc5 {[%emt 0:00:00] The position is equal.} Rxb2 {[%emt 0:00:58]} 26. Nxe6 {[%emt 0:00:00]} fxe6 {[%emt 0:00:07]} 27. Qc6 {[%emt 0:00:00]} Qb6 {[%emt 0:06:48]} 28. Qxb6 {[%emt 0:00:00]} axb6 {[%emt 0:00:05][%mdl 4096] Endgame. KRR-KRR} 29. Rad1 {[%emt 0:00:00]} Rf4 {[%emt 0:02:27]} 30. a4 {[%emt 0:00:00]} Re4 {[%emt 0:06:01][%cal Og8f7]} 31. Rb1 {[%emt 0:00:00]} Ree2 {[%emt 0:00:34][%cal Oe2f2]} 32. Rfd1 {[%emt 0:00:00]} Rxb1 {[%emt 0:04:06]} 33. Rxb1 {[%emt 0:00:00]} d3 {[%emt 0:00:05]} 34. Rd1 {[%emt 0:00:00]} Rxe5 {[%emt 0:00:28]} 35. Rxd3 {[%emt 0:00:00]} Re4 {[%emt 0:00:13]} 36. Rb3 {[%emt 0:00:00]} Rxa4 {[%emt 0:25:41] Weighted Error Value: White=0.10 (very precise) /Black=0.12 (very precise) .  Mistake:       	White=1     	Black=2      Inaccurate:     	White=2     	Black=1      OK:         	White=15    	Black=9      Best:        	---       	Black=2      Strong:       	White=1     	Black=1} 1/2-1/2

[Event "Tsaghkadzor Open 2024"]
[Site "Tsaghkadzor"]
[Date "2024.10.02"]
[Round "1.6"]
[White "Lobanov, Sergei"]
[Black "Kazarjan, Gachatur"]
[Result "1-0"]
[ECO "E91"]
[WhiteElo "2506"]
[BlackElo "2155"]
[Annotator "TA"]
[PlyCount "87"]
[EventDate "2024.09.13"]
[EventType "swiss"]
[EventCountry "ARM"]
[SourceTitle "playchess.com"]
[Source "ChessBase"]
[SourceQuality "1"]
[TimeControl "40/5400+30:1800+30"]

{[%evp 22,87,22,19,87,92,85,23,23,30,70,66,81,60,82,36,61,30,44,25,23,0,0,0,8,16,25,0,0,0,0,0,15,0,0,0,0,0,37,44,44,42,40,0,0,0,0,0,0,0,0,0,0,0,0,0,0,0,0,0,0,0,0,0,0,0,0,0]} 1. d4 {[%emt 0:00:08]} d6 {[%emt 0:01:16]} 2. Nf3 {[%emt 0:05:11]} Nf6 {[%emt 0:00:38]} 3. c4 {[%emt 0:00:10]} g6 {[%emt 0:00:59]} 4. Nc3 {[%emt 0:00:04]} Bf5 {[%emt 0:00:12]} 5. e3 {[%emt 0:03:17]} Bg7 {[%emt 0:00:16]} 6. Bd3 {[%emt 0:00:13]} Bd7 {[%emt 0:02:26]} 7. O-O {[%emt 0:00:09]} O-O {[%emt 0:00:17]} 8. e4 {[%emt 0:00:16]} Bg4 {[%emt 0:03:03]} 9. Be2 {[%emt 0:00:04]} Nfd7 {[%emt 0:08:11]} 10. Be3 {[%emt 0:02:53]} Nc6 {[%emt 0:02:47]} 11. d5 {[%emt 0:05:47]} Bxf3 {[%emt 0:08:45]} 12. Bxf3 {[%emt 0:00:11]} Nce5 {[%emt 0:00:24]} (12... Na5 $11) 13. Be2 $16 {[%emt 0:00:51]} Nb6 {[%emt 0:00:40] [#]} 14. Bd4 {[%emt 0:00:28]} (14. Qb3 $1 $16) 14... c5 $1 $11 {[%emt 0:01:24] White has an edge.} 15. dxc6 {[%emt 0:01:38]} Nxc6 {[%emt 0:02:26]} 16. Bxg7 {[%emt 0:03:05]} Kxg7 {[%emt 0:00:07]} 17. Qd2 {[%emt 0:00:09]} Nd7 {[%emt 0:02:00]} 18. Rfd1 {[%emt 0:10:32] White is more active.} (18. Rad1 $16) 18... a5 {[%emt 0:01:26]} 19. Nd5 {[%emt 0:06:29]} a4 {[%emt 0:04:17]} 20. Rac1 {[%emt 0:05:25][%cal Ba1c1,Bc1c3,Bc3d3][%mdl 32]} Qa5 {[%emt 0:01:46]} 21. Rc3 {[%emt 0:06:32]} (21. Qf4 {is more complex.} Rfd8 22. Rd2 e6 23. Nc3) 21... e6 {[%emt 0:07:26][%cal Od7c5] ...Nc5! would now be deadly.} (21... Rh8 {looks sharper.} 22. Qf4 e6 23. Ne3 Rad8) 22. Ne3 {[%emt 0:05:49][%cal Oe3g4]} Nf6 {[%emt 0:00:13]} 23. f3 {[%emt 0:01:14]} Rfd8 {[%emt 0:01:32]} 24. Rd3 {[%emt 0:02:45]} Qc5 {[%emt 0:00:28]} 25. Kf2 {[%emt 0:02:21]} Ne5 {[%emt 0:02:48] Excellent horsemanship.} 26. Rd4 {[%emt 0:05:14]} Ra6 {[%emt 0:00:56]} 27. g3 {[%emt 0:05:44]} Rb6 {[%emt 0:01:13]} 28. Qc3 {[%emt 0:00:28]} Kf8 {[%emt 0:10:02][%cal Oe5g4]} 29. Kg2 {[%emt 0:02:33]} Ke7 {[%emt 0:00:09]} 30. f4 {[%emt 0:04:11]} Nc6 {[%emt 0:01:08] [#]} 31. e5 $1 {[%emt 0:00:44]} Ne8 {[%emt 0:04:47] [#]} 32. Nd5+ $1 {[%emt 0:08:09]} exd5 {[%emt 0:00:39] The position is equal.} 33. Rxd5 {[%emt 0:00:02] aiming for exd6+.} Qb4 {[%emt 0:00:45] ...Qxc3 is the strong threat.} 34. exd6+ {[%emt 0:00:04]} Rxd6 {[%emt 0:01:47]} 35. Rxd6 {[%emt 0:00:51]} Nxd6 {[%emt 0:00:18]} 36. Qe3+ {[%emt 0:03:13]} Kf8 {[%emt 0:00:22]} 37. Rxd6 {[%emt 0:00:49]} Qxd6 {[%emt 0:00:15]} ({Don't go for} 37... Qxb2 $2 38. Rd2 Qb1 39. Bd3 $18) 38. Qxb6 {[%emt 0:00:03][%mdl 4096] Endgame. KQB-KQN} Qd2 {[%emt 0:00:06]} 39. Kf1 {[%emt 0:00:23]} Nd4 {[%emt 0:02:32]} 40. Qd6+ {[%emt 0:00:00]} Kg8 {[%emt 0:00:00]} 41. Qb8+ {[%emt 0:15:46]} Kg7 {[%emt 0:15:21]} 42. Qe5+ {[%emt 0:00:08]} Kg8 {[%emt 0:00:30]} 43. Qe8+ {[%emt 0:00:11]} Kg7 {[%emt 0:00:06]} 44. Qe5+ {[%emt 0:00:08][%mdl 32768] Weighted Error Value: White=0.10 (very precise) /Black=0.08 (flawless) .  Mistake:       	White=2     	---        Inaccurate:     	White=2     	Black=2      OK:         	White=13    	Black=14     Best:        	White=1     	Black=2      Strong:       	---       	Black=1      Brilliant:      	White=1     	---       . Loss on time!?} 1-0